Cogmind - Beta 13 *** ADVENTURER MODE // 2024.07.17 @ 11:34:05 Player: Jefffff Result: Destroyed by as-31359 with Assembled Blade Performance ------------- Evolutions (0) 0 Regions Visited (2) 400 Robots Destroyed (29) 145 Value Destroyed (386) 386 Prototype IDs (0) 0 Alien Tech Used (0) 0 Bonus (0) 0 TOTAL SCORE: 931 Bonus ------- None Cogmind --------- Core Integrity 0/250 Matter 276/300 Energy 49/100 System Corruption 0% Temperature Cool (60) Movement Core (1400) Ox27 Location -10/Mines Parts ------- > --- POWER (1) -------- (None) > --- PROPULSION (2) --- (None) > --- UTILITY (2) ------ Huge Storage Unit Targeting Computer > --- WEAPON (2) ------- Light Assault Rifle Mining Laser > --- INVENTORY (25) --- Improved Treads Improved Treads Improved Treads Improved Treads Aluminum Leg Improved Terrain Scanner ECM Suite Peak State ------------ > --- POWER ------------ Ion Engine > --- PROPULSION ------- Improved Treads Improved Treads > --- UTILITY ---------- Small Storage Unit Seismic Detector > --- WEAPON ----------- Small Laser Small Laser > --- INVENTORY -------- Light Ion Engine Wheel Wheel Wheel Small Matter Pod Improved Terrain Scanner Small Laser Mining Laser [Rating: 10] Favorites ----------- Power Ion Engine Engine Ion Engine Propulsion Improved Aluminum Leg Treads Improved Treads Leg Improved Aluminum Leg Wheel Wheel Flight Unit Flight Unit Utility Small Storage Unit Device Seismic Detector Storage Small Storage Unit Processor Targeting Computer Weapon Small Laser Energy Gun Small Laser Ballistic Gun Light Assault Rifle Special Weapon Mining Laser Build | -11 -10 -10 ------- Run | Yrd Mat Min Slots Evolved . | . . . Power . | . . . Propulsion . | . . . Utility . | . . . Weapon . | . . . Parts Attached 27 | 7 17 3 Power 5 | 1 4 . Engine 5 | 1 4 . Core . | . . . Reactor . | . . . Propulsion 9 | 2 7 . Treads 2 | . 2 . Leg 4 | . 4 . Wheel 2 | 2 . . Hover . | . . . Flight 1 | . 1 . Utility 6 | 2 4 . Device 2 | 1 1 . Storage 3 | 1 2 . Processor 1 | . 1 . Hackware . | . . . Protection . | . . . Artifact . | . . . Weapon 7 | 2 2 3 Energy Gun 4 | 2 1 1 Energy Cannon . | . . . Ballistic Gun 2 | . 1 1 Ballistic Cannon . | . . . Launcher . | . . . Special Weapon 1 | . . 1 Impact Weapon . | . . . Slashing Weapon . | . . . Piercing Weapon . | . . . Special Melee Weapon . | . . . Unidentified Prototypes . | . . . Parts Lost 7 | . 2 5 Power 1 | . . 1 Propulsion 2 | . . 2 Utility 1 | . 1 . Weapon 3 | . 1 2 Highest Loss Streak 5 | . 2 5 To Critical Strikes . | . . . Average Slot Usage (%) 97 | . 97 85 Engine 13 | . 14 10 Treads 3 | . 3 . Leg 23 | . 23 21 Device 5 | . 6 . Storage 14 | . 14 14 Processor 7 | . 7 14 Energy Gun 20 | . 20 14 Ballistic Gun 6 | . 6 10 Naked Turns . | . . . Heaviest Build 85 | 13 85 85 Greatest Support 46 | 20 46 13 Greatest Overweight (x) 6 | 1 3 6 Average Overweight (x) . | . . 6 Largest Inventory Capacity 25 | 8 25 25 Average Capacity 12 | 7 14 25 Most Carried 10 | 8 10 9 Average Carried 7 | 6 8 8 Final Capacity 25 | 8 25 25 Final Carried 9 | 8 9 7 Class Distribution -------------------- 100% | Mutant Dominant Class ---------------- Mutant | -10/Materials Mutant | -10/Mines Resources | -11 -10 -10 ----------- Run | Yrd Mat Min Matter Collected 452 | 320 132 . Remotely . | . . . Salvage Created 720 | 325 353 42 Parts 55 | 26 22 7 Haulers Intercepted . | . . . Recyclers Shooed . | . . . Parts Field Recycled . | . . . Retrieved Matter . | . . . Parts Self-Destructed . | . . . Prevented . | . . . Kills | -11 -10 -10 ------- Run | Yrd Mat Min Combat Hostiles Destroyed 15 | . 11 4 Guns 14 | . 11 3 Cannons 1 | . . 1 Classes Destroyed 7 | 3 3 1 Worker 4 | 4 . . Tunneler 9 | 9 . . Recycler 1 | 1 . . Watcher 1 | . 1 . Swarmer 8 | . 5 3 Grunt 6 | . 6 . Assembled 1 | . . 1 Best Kill Streak 5 | 4 5 3 Combat Bots Only 5 | . 5 3 Max Kills in Single Turn 2 | 2 2 1 Gunslinging 1 | . 1 . Exploded . | . . . Melee . | . . . Uniques/NPCs Destroyed . | . . . Combat | -11 -10 -10 -------- Run | Yrd Mat Min Hostile Shots Fired 137 | . 96 41 Missed 38 | . 30 8 Damage Taken 994 | . 536 458 Core 268 | . 112 156 Absorbed by Shields . | . . . Ignored by Resistances 300 | . 168 132 Core Remaining (%) 100 | 100 . . Volleys Fired 69 | 30 29 10 Largest 2 | 2 2 2 Hottest 120 | 80 80 120 Shots Fired 131 | 60 52 19 Gun 130 | 60 52 18 Cannon . | . . . Launcher . | . . . Special 1 | . . 1 Kinetic 17 | . 9 8 Thermal 114 | 60 43 11 Explosive . | . . . Electromagnetic . | . . . Robot Hit Streak 13 | 12 13 5 Robot Miss Streak 4 | 2 4 2 Penetration Max . | . . . Secondary Targets 4 | . 3 1 Max Gunslinging Chain 1 | . 1 1 Shots Hit Robots 98 | 45 39 14 Core Hits 42 | 15 21 6 Critical Kills . | . . . Critical Parts Destroyed . | . . . Critical Strikes . | . . . Melee Attacks . | . . . Impact . | . . . Slashing . | . . . Piercing . | . . . Sneak Attacks . | . . . Combat Hostiles . | . . . Follow-up Attacks . | . . . Damage Inflicted 1110 | 518 428 164 Guns 1069 | 518 411 140 Cannons . | . . . Explosions . | . . . Melee . | . . . Ramming 17 | . 17 . Kinetic 111 | . 50 61 Thermal 982 | 518 361 103 Explosive . | . . . Electromagnetic . | . . . Impact . | . . . Slashing . | . . . Piercing . | . . . Highest Corruption . | . . . Average Corruption . | . . . Corruption Purged . | . . . Corruption Blocked . | . . . Overload Shots . | . . . Overflow Damage 4 | . . 4 Projectiles 4 | . . 4 Explosions . | . . . Melee . | . . . Knockbacks . | . . . Impact . | . . . Kinetic . | . . . Secondary . | . . . Self-Inflicted Damage . | . . . Shots . | . . . Rammed 1 | . 1 . Targets Rammed 7 | . 7 . Kicked 6 | . 6 . Crushed . | . . . Highest Temperature 220 | 126 220 138 Average Temperature 64 | 43 90 58 Received Heat Transfer 524 | . 324 200 Siege Activations . | . . . Robots Corrupted . | . . . Combat Hostiles . | . . . Parts Fried . | . . . Impact Corruptions . | . . . Robots Melted . | . . . Combat Hostiles . | . . . Parts Melted 8 | 6 2 . Heat Transferred 2225 | 1175 825 225 Parts Sabotaged . | . . . Parts Stolen . | . . . Parts Stripped . | . . . Power Chain Reactions . | . . . Alert | -11 -10 -10 ------- Run | Yrd Mat Min Peak Influence 232 | 70 232 80 Initial 10 | . . 10 Average 78 | 35 104 51 Maximum Alert Level 1 | . 1 . Low Security (%) 89 | 100 82 100 Level 1 10 | . 17 . Level 2 . | . . . Level 3 . | . . . Level 4 . | . . . Level 5 . | . . . High Security . | . . . Max Security . | . . . Squads Dispatched 2 | . 2 . Investigation 2 | . 2 . Extermination . | . . . Reinforcement . | . . . Assault . | . . . Garrison . | . . . Intercept . | . . . Searches Triggered . | . . . Construction Impeded . | . . . Haulers Reinforced . | . . . Active Scanning Responses . | . . . Cargo Convoy Interrupts . | . . . Stealth | -11 -10 -10 --------- Run | Yrd Mat Min Distress Signals . | . . . Communications Jammed . | . . . Distress Signals . | . . . Times Spotted 23 | . 16 7 Peak Tracking Total 6 | . 6 6 Tactical Retreats 1 | . 1 . Traps | -11 -10 -10 ------- Run | Yrd Mat Min Traps Triggered . | . . . Indirectly . | . . . Trap Hack Attempts . | . . . Triggered . | . . . Disarmed . | . . . Reprogrammed . | . . . Reused . | . . . Traps Extracted . | . . . Installed . | . . . Triggered . | . . . Machines | -11 -10 -10 ---------- Run | Yrd Mat Min Machines Disabled . | . . . Max in Single Turn . | . . . Machines Repaired . | . . . Machines Dismantled . | . . . Machines Sabotaged . | . . . Overloaded Fab Kills . | . . . Hacking | -11 -10 -10 --------- Run | Yrd Mat Min Machines Accessed 5 | . 5 . Terminals 4 | . 4 . Fabricators . | . . . Repair Stations . | . . . Recycling Units 1 | . 1 . Scanalyzers . | . . . Garrison Access . | . . . Total Hacks 16 | . 16 . Successful 9 | . 9 . Failed 7 | . 7 . Catastrophic . | . . . Database Lockouts . | . . . Manual 13 | . 13 . Terminals 14 | . 14 . Fabricators . | . . . Repair Stations . | . . . Recycling Units 2 | . 2 . Scanalyzers . | . . . Garrison Access . | . . . Terminal Hacks 4 | . 4 . Robot Analysis 1 | . 1 . Branch Access Points 1 | . 1 . Terminal Index 1 | . 1 . Scanalyzer Index 1 | . 1 . Fabricator Hacks . | . . . Repair Station Hacks . | . . . Recycling Unit Hacks 1 | . 1 . Report Inventory 1 | . 1 . Scanalyzer . | . . . Garrison Access Hacks . | . . . Unauthorized Hacks 4 | . 4 . Terminals 4 | . 4 . Botnet 4 | . 4 . Fabricators . | . . . Repair Stations . | . . . Recycling Units . | . . . Scanalyzers . | . . . Garrison Access . | . . . Data Cores Recovered . | . . . Used . | . . . Hacking Detections 5 | . 5 . Full Trace Events 2 | . 2 . Feedback Events . | . . . Feedback Blocked . | . . . Robot Schematics Acquired . | . . . Robots Built . | . . . Authchips . | . . . Time . | . . . Total Robot Build Rating . | . . . Part Schematics Acquired . | . . . Parts Built . | . . . Authchips . | . . . Time . | . . . Total Part Build Rating . | . . . Parts Repaired . | . . . Time . | . . . Parts Recycled . | . . . Recycled Matter . | . . . Retrieved Matter . | . . . Retrieved Components . | . . . Parts Scanalyzed . | . . . Part Schematics Acquired . | . . . Parts Damaged . | . . . Bothacking | -11 -10 -10 ------------ Run | Yrd Mat Min Used RIF Installer . | . . . Robots Hacked . | . . . Non-combat . | . . . Combat . | . . . Robot Hacks Applied . | . . . Relay Couplers Released . | . . . Fabnet Peak Effective % . | . . . Robots Rewired . | . . . Allies Hacked . | . . . Hacks Repelled . | . . . Allies | -11 -10 -10 -------- Run | Yrd Mat Min Total Allies . | . . . Largest Group . | . . . Highest-Rated Group . | . . . Highest-Rated Ally . | . . . Total Orders . | . . . Ally Attacks . | . . . Total Damage . | . . . Kills . | . . . Allies Corrupted . | . . . Allies Melted . | . . . Intel | -11 -10 -10 ------- Run | Yrd Mat Min Robot Analysis Total 1 | . 1 . Derelict Logs Recovered . | . . . Drone Launches . | . . . Drone Recoveries . | . . . Exploration | -11 -10 -10 ------------- Run | Yrd Mat Min Turns Passed 1324 | 469 817 38 Spaces Moved 595 | 179 415 1 Core 29 | 29 . . Treads 63 | . 63 . Legs 343 | . 342 1 Wheels 160 | 150 10 . Hover . | . . . Flight . | . . . Fastest Speed 50 | 50 80 540 Average Speed 138 | 75 164 540 Slowest Speed 540 | 100 330 540 Overloaded Moves . | . . . Propulsion Burnouts . | . . . Robots Hopped . | . . . Cave-ins Triggered . | . . . Exploration Rate (%) 22 | 4 60 4 Regions Visited 2 Branch Regions 1 Pre-discovered Areas . | . . . Known Exits Taken 1 | . 1 . Unknown Exits Taken 1 | 1 . . Scrap Searched . | . . . Spaces Dug . | . . . Terrain Destroyed . | . . . Melee . | . . . Projectile . | . . . AOE . | . . . Terrain Rammed . | . . . Walls Destroyed . | . . . Machines Disabled . | . . . Actions | -11 -10 -10 --------- Run | Yrd Mat Min Total 972 | 451 506 15 Wait 229 | 222 7 . Move 593 | 178 414 1 Hop . | . . . Pick Up 26 | 14 11 1 Fast Attach 10 | 1 9 . Attach 12 | 6 3 3 Detach . | . . . Swap 5 | . 5 . Drop 21 | . 21 . Fire 69 | 30 29 10 Melee . | . . . Ram . | . . . Kick 6 | . 6 . Crush 1 | . 1 . Escape Stasis . | . . . Rewire . | . . . Trap . | . . . Miscellaneous . | . . . Route ------- -11/Scrapyard -10/Materials (discovered 2 exits: [*Mat] / *Min) -10/Mines History --------- Turn | Location | Event 13 | -11/Scrapyard | Discovered new exit (range 15) 470 | -11/Scrapyard | Entered Materials 471 | -10/Materials | Build established: Mutant 663 | -10/Materials | Identified exit to Mines 1074 | -10/Materials | Discovered new exit (range 12) 1287 | -10/Materials | Entered Mines 1288 | -10/Mines | Assembled infested the area 1301 | -10/Mines | Core integrity fell below 50% 1319 | -10/Mines | Core integrity fell below 20% 1325 | -10/Mines | Destroyed by as-31359 with Assembled Blade Last Messages --------------- 01206_ K-01 Serf cleans the Matter Filter. LOCATION=MINES GOAL=ESCAPE Something is scanning the area. 01287_ S-10 Pest destroyed. 01288_ ALERT: Infestation in the mines, dispatching Demolisher response squad. 01293_ S-10 Pest destroyed. 01293_ Switching to secondary target: S-10 Pest. 01299_ S-10 Pest destroyed. 01305_ as-76826 powers down. 01305_ Lgt. Assault Rifle destroyed. 01311_ Imp. Aluminum Leg destroyed. 01313_ Sml. Laser destroyed. 01313_ Lgt. Ion Engine destroyed. 01316_ Imp. Aluminum Leg destroyed. 01317_ Sml. Laser severed. 01318_ Acquired Lgt. Assault Rifle. 01321_ Destroyed Asb. Hover Unit. 01321_ as-17795 destroyed. Map ----- +----------------------------------------------------+ | ?????????????????????????????????????????????????? | | ?????????????????????????????????????????????????? | | ?????????????????????????????????????????????????? | | ?????????????????????????????????????????????????? | | ?????????????????????????????????????????????????? | | ?????????????????????????????????????????????????? | | ?????????????????????????????????????????????????? | | ?????????????????????????????????????????????????? | | ?????????????????????????????????????????????????? | | ?????????????????????????????????????????????????? | | ?????????????????????????????????????????????????? | | ?????????????????????????????????????????????????? | | ?????????????????????????????????????????????????? | | ?????????????????????????????????????????????????? | | ?????????????????????????????????????????????????? | | ?????????????????????????????????????????????????? | | ?????????????????????????????????????????????????? | | ?????????????????????????????????????????????????? | | ??????????????????????????????????##?????????????? | | ???????????????????????????????## ##????????????? | | ??????????????????????????????# #????????????? | | ????????????????????????####?# #????????????? | | ???????????????????????## ## #?????????????? | | ???????????????????????#=*= #??????????????? | | ???????????????????????#%=%* #???????????????? | | ????????????????????????#@[ #????????????????? | | ????????????????????????#[aa ##????????????????? | | ????????????????????????# ###?????????????????? | | ????????????????????????# ##???????????????????? | | ????????????????????????# ##????????????????????? | | ???????????????????????? $a#?????????????????????? | | ????????????????????????# #?????????????????????? | | ????????????????????????# #?????????????????????? | | ????????????????????????# ?????????????????????? | | ???????????????????????? ?????????????????????? | | ???????????????????????? ?????????????????????? | | ????????????????????????# ?????????????????????? | | ????????????????????????####?????????????????????? | | ?????????????????????????????????????????????????? | | ?????????????????????????????????????????????????? | | ?????????????????????????????????????????????????? | | ?????????????????????????????????????????????????? | | ?????????????????????????????????????????????????? | | ?????????????????????????????????????????????????? | | ?????????????????????????????????????????????????? | | ?????????????????????????????????????????????????? | | ?????????????????????????????????????????????????? | | ?????????????????????????????????????????????????? | | ?????????????????????????????????????????????????? | | ?????????????????????????????????????????????????? | +----------------------------------------------------+ Best States ------------- Heat Dissipation 25 Energy Generation 10 Energy Capacity 250 Matter Stores 300 Matter Capacity 300 Sight Range 16 Terrain Scan Density 10 ECM Strength 1 Resistance: KI 20 Resistance: TH 20 Resistance: EX 20 Resistance: EM 20 Resistance: I 20 Resistance: S 20 Resistance: P 20 Evasion (%) 55 Targeting Accuracy 5 Recoil Reduction 2 Offensive Hacking 10 Item Schematics ----------------- None Robot Schematics ------------------ None Fabricated ------------ Nothing Alien Tech Used ----------------- None Achievements -------------- None Challenges ------------ None Game ------ Seed DeuteriumGuidedComputer Manual? 0 Play Time 00:09:21 Cumulative 36.8 hours Start 2024.07.17 @ 11:25:33 End 2024.07.17 @ 11:34:05 Sessions 1 Manual Loads 0 Difficulty Adventurer Special Mode None Game No. 61 Rogue 0 Adventurer 61 Explorer 0 Win Type - Total 0 Types 0/0/0/0/0/0/0/0/0 Lore% 38 Gallery% 35 Achievement% 27 Wizard Run 0 Options --------- Layout 2 ASCII 0 Keyboard 0 Movement Mouse Keybinds 0 Fullscreen 2 Font 48/Smallcaps Map View 50x44 Zoom Use 0% Tactical HUD 1 Map Filters NONE Filters NONE Steam 1 RUN: a4c762a5-ea66-4867-bf6c-bdb628e2f470